bitfinex/quotes_BTCUSD_20250513
["timestamp","ask_amount","ask_price","bid_price","bid_amount"]
[1747150442063,0.25573573,103580.0,103570.0,0.00909082]
[1747150443022,0.25573573,103580.0,103570.0,0.16922964]
[1747150446929,0.35304513,103580.0,103570.0,0.00909082]
[1747150450430,0.51318395,103580.0,103570.0,0.00909082]
[1747150450606,0.71262395,103580.0,103570.0,0.00305694]
[1747150450815,0.71262395,103580.0,103570.0,4e-05]
[1747150450986,0.80993335,103580.0,103570.0,4e-05]
[1747150451359,0.71262395,103580.0,103570.0,4e-05]
[1747150452659,0.88730362,103580.0,103570.0,4e-05]
[1747150452886,0.7271648,103580.0,103570.0,4e-05]
[1747150453108,0.24592122,103570.0,103560.0,0.00350174]
[1747150453313,0.50336944,103570.0,103560.0,0.00048411]
[1747150453514,0.50340944,103570.0,103560.0,0.00048411]
[1747150453757,0.34327062,103570.0,103560.0,0.00048411]
[1747150454654,0.60128974,103570.0,103560.0,0.00048411]
[1747150454872,0.50540944,103570.0,103560.0,0.00048411]
[1747150455370,0.70628944,103570.0,103560.0,0.00048411]
[1747150455881,0.54439062,103570.0,103560.0,0.00048411]
[1747150456834,0.54239062,103570.0,103560.0,0.00148411]
[1747150457029,0.54239062,103570.0,103560.0,0.00048411]
[1747150457199,0.54339062,103570.0,103560.0,0.00148411]
[1747150457400,0.54439062,103570.0,103560.0,0.00148411]
[1747150457699,0.54339062,103570.0,103560.0,0.00048411]
[1747150457867,0.54511062,103570.0,103560.0,0.00148411]
[1747150461355,0.34627062,103570.0,103560.0,0.00148411]
[1747150461580,0.54471062,103570.0,103560.0,0.00148411]
[1747150462636,0.34627062,103570.0,103560.0,0.16162293]
[1747150463344,0.34627062,103570.0,103560.0,0.16166293]
[1747150463567,0.34627062,103570.0,103560.0,0.00152411]
[1747150464771,0.34627062,103570.0,103560.0,0.0045415]
[1747150466376,0.34627062,103570.0,103560.0,0.00152411]
[1747150472527,0.34627062,103570.0,103560.0,0.00454164]
[1747150473836,0.34627062,103570.0,103560.0,0.00152411]
[1747150474319,0.34627062,103570.0,103560.0,0.00454164]
[1747150474774,0.34627062,103570.0,103560.0,0.00152411]
[1747150475192,0.34627062,103570.0,103560.0,0.00454164]
[1747150475844,0.34627062,103570.0,103560.0,0.00152411]
[1747150476289,0.34627062,103570.0,103560.0,0.00454164]
[1747150477149,0.34627062,103570.0,103560.0,0.00152411]
[1747150478078,0.50640944,103570.0,103560.0,0.00152411]
[1747150478291,0.70332944,103570.0,103560.0,0.00152411]
[1747150479582,0.71787029,103570.0,103560.0,0.00152411]
[1747150489582,0.71787029,103570.0,103560.0,0.00156411]
[1747150493001,0.77811501,103570.0,103560.0,0.00156411]
[1747150494671,0.87542441,103570.0,103560.0,0.00156411]
[1747150495914,1.22542441,103570.0,103560.0,0.00156411]
[1747150496273,1.45576795,103570.0,103560.0,0.00156411]
[1747150497165,0.20279956,103530.0,103520.0,0.19752]
[1747150497332,0.30014896,103530.0,103520.0,0.41790354]
[1747150497556,0.30014896,103530.0,103520.0,0.41804379]
[1747150498380,0.30114896,103530.0,103520.0,0.42204379]
[1747150499246,0.30114896,103530.0,103520.0,0.76204379]
[1747150499744,0.30214896,103530.0,103520.0,0.76704379]
[1747150500174,0.30214896,103530.0,103520.0,0.54666025]
[1747150500383,0.30214896,103530.0,103520.0,0.2391496]
[1747150501216,0.30214896,103530.0,103520.0,0.0416296]
[1747150501446,0.60974356,103530.0,103520.0,0.00914025]
[1747150501896,0.7554525,103530.0,103520.0,0.00914025]
[1747150502571,1.10999335,103530.0,103520.0,0.00914025]
[1747150503048,1.32837689,103530.0,103520.0,0.00014025]
[1747150503253,0.98937689,103530.0,103520.0,0.00314025]
[1747150503501,0.80227911,103530.0,103520.0,0.00114025]
[1747150503717,0.89958851,103530.0,103520.0,0.00114025]
[1747150503917,0.90058851,103530.0,103520.0,0.00014025]
[1747150504128,0.90458851,103530.0,103520.0,0.00014025]
[1747150504326,0.91454851,103530.0,103520.0,0.00014025]
[1747150504761,0.59685557,103530.0,103520.0,0.00014025]
[1747150504963,0.81723911,103530.0,103520.0,0.00014025]
[1747150505421,1.1284455,103530.0,103520.0,0.00014025]
[1747150505624,1.1184855,103530.0,103520.0,0.00014025]
[1747150505824,0.74287417,103530.0,103520.0,0.00014025]
[1747150506061,0.78214339,103530.0,103520.0,0.00014025]
[1747150506406,0.35897763,103530.0,103520.0,0.00014025]
[1747150507254,0.81685781,103530.0,103520.0,0.00018025]
[1747150507477,1.16685781,103530.0,103520.0,0.00018025]
[1747150507763,1.50292774,103530.0,103520.0,0.00018025]
[1747150507995,1.05958841,103530.0,103520.0,0.00018025]
[1747150508518,1.76894841,103530.0,103520.0,0.00018025]
[1747150508740,1.75898841,103530.0,103520.0,0.00018025]
[1747150509488,1.74898841,103530.0,103520.0,0.00018025]
[1747150509945,1.75898841,103530.0,103520.0,0.00018025]
[1747150510155,1.74898841,103530.0,103520.0,0.00018025]
[1747150510605,1.75898841,103530.0,103520.0,0.00018025]
[1747150510822,1.95418841,103530.0,103520.0,0.00018025]
[1747150511061,1.60811848,103530.0,103520.0,0.00018025]
[1747150511479,1.26811848,103530.0,103520.0,0.00018025]
[1747150512098,1.46251848,103530.0,103520.0,0.00018025]
[1747150515603,1.79858841,103530.0,103520.0,0.00018025]
[1747150515805,1.50629781,103530.0,103520.0,0.00018025]
[1747150516014,1.89557781,103530.0,103520.0,0.00018025]
[1747150516257,2.23164774,103530.0,103520.0,0.00018025]
[1747150516452,2.58160774,103530.0,103520.0,0.00018025]
[1747150517584,2.58164774,103530.0,103520.0,0.00018025]
[1747150517786,2.59160774,103530.0,103520.0,0.00018025]
[1747150518758,2.58160774,103530.0,103520.0,0.00018025]
[1747150519407,2.14822841,103530.0,103520.0,0.00018025]
[1747150520402,2.14826841,103530.0,103520.0,0.00018025]
[1747150520574,2.15798841,103530.0,103520.0,0.00018025]
[1747150520776,2.14802841,103530.0,103520.0,0.00018025]
[1747150523151,2.49405834,103530.0,103520.0,0.00018025]
[1747150523355,2.59136774,103530.0,103520.0,0.00018025]
[1747150524072,1.89196774,103530.0,103520.0,0.00018025]
[1747150526572,1.88196774,103530.0,103520.0,0.00018025]
[1747150526793,1.89196774,103530.0,103520.0,0.00018025]
[1747150528729,1.79465834,103530.0,103520.0,0.00018025]
[1747150530111,1.45858841,103530.0,103520.0,0.00018025]
[1747150530325,0.70897763,103530.0,103520.0,0.00018025]
[1747150530534,0.74749763,103530.0,103520.0,0.00018025]
[1747150530745,0.55353763,103530.0,103520.0,0.00018025]
[1747150530946,0.74745763,103530.0,103520.0,0.00018025]
[1747150531157,0.55353763,103530.0,103520.0,0.00018025]
[1747150531821,0.56807848,103530.0,103520.0,0.00018025]
[1747150532372,0.66538788,103530.0,103520.0,0.00018025]
[1747150532747,1.00145781,103530.0,103520.0,0.00018025]
[1747150533815,1.68752774,103530.0,103520.0,0.00018025]
[1747150534257,1.69748774,103530.0,103520.0,0.00018025]
[1747150534653,1.72458921,103530.0,103520.0,0.00455223]
[1747150535733,1.72458921,103530.0,103520.0,0.00018025]
[1747150535919,1.72458921,103530.0,103520.0,0.00210706]
[1747150536116,1.72458921,103530.0,103520.0,0.00018025]
[1747150537300,1.62727981,103530.0,103520.0,0.00018025]
[1747150537709,1.62727981,103530.0,103520.0,0.00212473]
[1747150539028,1.61731981,103530.0,103520.0,0.00018025]
[1747150539555,1.60731981,103530.0,103520.0,0.00018025]
[1747150540213,1.60531981,103530.0,103520.0,0.00018025]
[1747150540410,1.70262921,103530.0,103520.0,0.00018025]
[1747150540628,1.70762921,103530.0,103520.0,0.00118025]
[1747150541032,1.70362921,103530.0,103520.0,0.00118025]
[1747150541251,1.71062921,103530.0,103520.0,0.00118025]
[1747150541668,1.90418921,103530.0,103520.0,0.00118025]
[1747150542261,1.80687981,103530.0,103520.0,0.00118025]
[1747150542737,1.90847981,103530.0,103520.0,0.00118025]
[1747150543593,0.20289757,103480.0,103470.0,0.34]
[1747150543804,0.20289757,103480.0,103470.0,0.34004814]
[1747150543805,0.30020697,103480.0,103470.0,0.34004814]
[1747150543939,0.30024697,103480.0,103470.0,0.38009953]
[1747150544542,0.30024697,103480.0,103470.0,0.71616946]
[1747150544797,0.30124697,103480.0,103470.0,0.72116946]
[1747150545006,0.30224697,103480.0,103470.0,0.72216946]
[1747150545723,0.30224697,103480.0,103470.0,0.72226561]
[1747150546340,0.30224697,103480.0,103470.0,0.72346561]
[1747150547987,0.30224697,103480.0,103470.0,0.38729953]
[1747150548892,0.30224697,103480.0,103470.0,0.72346561]
[1747150550843,0.30224697,103480.0,103470.0,0.72346893]
[1747150552043,0.30224697,103480.0,103470.0,0.38729953]
[1747150553725,0.30224697,103480.0,103470.0,0.38733953]
[1747150556026,0.30224697,103480.0,103470.0,0.72350893]
[1747150556816,0.30224697,103480.0,103470.0,0.72538728]
[1747150562859,0.32224697,103480.0,103470.0,0.38801788]
[1747150562998,0.34204697,103480.0,103470.0,0.38801788]
[1747150563212,0.30224697,103480.0,103470.0,0.38801788]
[1747150563618,0.30224697,103480.0,103470.0,0.72418728]
[1747150563837,0.30224697,103480.0,103470.0,0.72538728]
[1747150566353,0.30224697,103480.0,103470.0,0.72418728]
[1747150571811,0.21460099,103480.0,103470.0,0.72418728]
[1747150572058,0.21460099,103480.0,103470.0,1.58674141]
[1747150572351,0.21460099,103480.0,103470.0,1.54669002]
[1747150573031,0.21460099,103480.0,103470.0,1.23292702]
[1747150573251,0.21460099,103480.0,103470.0,1.73668502]
[1747150573488,0.21460099,103480.0,103470.0,1.75601344]
[1747150573673,0.22426459,103480.0,103470.0,1.74634937]
[1747150573808,0.21460117,103480.0,103470.0,1.73668502]
[1747150574013,0.21460117,103480.0,103470.0,1.74634937]
[1747150574277,0.21460117,103480.0,103470.0,1.75601363]
[1747150574670,0.02132711,103480.0,103470.0,1.75601363]
[1747150574911,0.22426487,103480.0,103470.0,1.7656778]
[1747150575152,0.01170323,103480.0,103470.0,1.76567733]
[1747150575390,0.0310296,103480.0,103470.0,1.76567686]
[1747150575631,0.02136599,103480.0,103470.0,1.76567686]
[1747150575865,0.03102922,103480.0,103470.0,1.76567686]
[1747150575991,0.04069264,103480.0,103470.0,1.76567686]
[1747150576223,0.02136599,103480.0,103470.0,1.76567686]
[1747150576459,0.01170286,103480.0,103470.0,1.86298626]
[1747150577332,0.00204,103480.0,103470.0,1.86298626]
[1747150577833,0.00204,103480.0,103470.0,1.87752711]
[1747150579010,0.01170295,103480.0,103470.0,1.87752711]
[1747150579244,0.00204,103480.0,103470.0,1.87752711]
[1747150579944,0.21256041,103500.0,103490.0,0.20286408]
[1747150580168,0.22222177,103500.0,103490.0,0.75099845]
[1747150580390,0.21256041,103500.0,103490.0,0.73351738]
[1747150580602,0.19323694,103500.0,103490.0,0.72389471]
[1747150580826,0.19323694,103500.0,103490.0,0.73355747]
[1747150581251,0.19323694,103500.0,103490.0,0.75288262]
[1747150581473,0.19523694,103500.0,103490.0,0.75388262]
[1747150581855,0.20789858,103500.0,103490.0,0.76354492]
[1747150582291,0.20789858,103500.0,103490.0,0.73455747]
[1747150582862,0.20789858,103500.0,103490.0,0.54131606]
[1747150583087,0.20789858,103500.0,103490.0,0.20514666]
[1747150583311,0.20789858,103500.0,103490.0,0.54131606]
[1747150584771,0.20789858,103500.0,103490.0,0.55097873]
[1747150585121,0.20789858,103500.0,103490.0,0.73491606]
[1747150585338,0.20789858,103500.0,103490.0,0.93783411]
[1747150585551,0.03398474,103500.0,103490.0,0.95715879]
[1747150585800,0.22722145,103500.0,103490.0,0.95715898]
[1747150586024,0.22722145,103500.0,103490.0,0.93783411]
[1747150586256,0.21756009,103500.0,103490.0,0.9474965]
[1747150586503,0.21756009,103500.0,103490.0,0.95715898]
[1747150586684,0.024323,103500.0,103490.0,0.96682128]
[1747150586915,0.03398474,103500.0,103490.0,0.96682072]
[1747150587147,0.04364657,103500.0,103490.0,0.95715852]
[1747150587389,0.04364573,103500.0,103490.0,2.07004672]
[1747150587614,0.05330756,103500.0,103490.0,2.05318372]
[1747150588062,0.23688319,103500.0,103490.0,2.01785922]
[1747150588311,0.23688319,103500.0,103490.0,1.52263952]
[1747150588515,0.23688319,103500.0,103490.0,1.49365235]
[1747150588731,0.20789854,103500.0,103490.0,1.1717043]
[1747150588955,0.24829854,103500.0,103490.0,0.7249333]
[1747150589912,0.24829854,103500.0,103490.0,0.73097124]
[1747150590141,0.24833854,103500.0,103490.0,0.73097124]
[1747150590996,0.24833854,103500.0,103490.0,0.73399109]
[1747150591855,0.24833854,103500.0,103490.0,0.92724647]
[1747150592052,0.24833854,103500.0,103490.0,0.95623391]
[1747150592618,0.24833854,103500.0,103490.0,0.9562341]
[1747150592834,0.24833854,103500.0,103490.0,0.92672647]
[1747150593056,0.24833854,103500.0,103490.0,0.9460519]
[1747150593292,0.24833854,103500.0,103490.0,0.95571438]
[1747150593511,0.24833854,103500.0,103490.0,0.96537677]
[1747150595054,0.24833854,103500.0,103490.0,0.9460519]
[1747150595263,0.24833854,103500.0,103490.0,0.96537696]
[1747150595483,0.24833854,103500.0,103490.0,0.97503935]
[1747150595911,0.24833854,103500.0,103490.0,0.97736515]
[1747150596140,0.24833854,103500.0,103490.0,0.97736469]
[1747150596595,0.24833854,103500.0,103490.0,0.97736422]
[1747150597483,0.24833854,103500.0,103490.0,0.96770202]
[1747150597914,0.24833854,103500.0,103490.0,0.69043689]
[1747150598113,0.24833854,103500.0,103490.0,0.74998563]
[1747150598378,0.24833854,103500.0,103490.0,1.08615503]
[1747150598631,0.24833854,103500.0,103490.0,0.89289965]
[1747150599051,0.24833854,103500.0,103490.0,0.88323689]
[1747150600061,0.24833854,103500.0,103490.0,0.54706749]
[1747150600581,0.24833854,103500.0,103490.0,1.07649227]
[1747150601465,0.24833854,103500.0,103490.0,0.88323689]
[1747150602735,0.24833854,103500.0,103490.0,1.0958177]
[1747150603663,0.23867671,103500.0,103490.0,0.89289965]
[1747150605070,0.23867671,103500.0,103490.0,1.08615503]
[1747150605713,0.23867671,103500.0,103490.0,0.35426749]
[1747150605714,0.33598611,103500.0,103490.0,0.35426749]
[1747150607556,0.33598611,103500.0,103490.0,0.69043689]
[1747150608451,0.33598611,103500.0,103490.0,0.35426749]
[1747150609164,0.33598611,103500.0,103490.0,0.69043689]
[1747150610043,0.24833807,103500.0,103490.0,0.90301733]
[1747150610285,0.24833807,103500.0,103490.0,0.91267944]
[1747150610286,0.07442399,103500.0,103490.0,0.91267944]
[1747150610563,0.00504,103500.0,103490.0,1.53869824]
[1747150610803,0.00504,103500.0,103490.0,3.07558524]
[1747150611790,0.00204,103500.0,103490.0,3.07558524]
[1747150612022,0.00304,103500.0,103490.0,3.08058524]
[1747150612236,0.00104,103500.0,103490.0,3.07958524]
[1747150612469,0.01170099,103500.0,103490.0,2.66539262]
[1747150612703,0.02136207,103500.0,103490.0,2.61251462]
[1747150612932,0.00204,103500.0,103490.0,2.94868402]
[1747150614546,0.01170099,103500.0,103490.0,2.94868402]
[1747150614770,0.01170099,103500.0,103490.0,1.94567762]
[1747150614990,0.03102363,103500.0,103490.0,1.78312262]
[1747150615235,0.04156217,103500.0,103490.0,1.73722062]
[1747150615535,0.08058499,103500.0,103490.0,1.29241822]
[1747150615750,0.08058499,103500.0,103490.0,1.80395862]
[1747150615986,0.07092353,103500.0,103490.0,1.80395862]
[1747150616218,0.08058499,103500.0,103490.0,1.80395862]
[1747150616441,0.09024663,103500.0,103490.0,1.80395862]
[1747150616872,0.08058499,103500.0,103490.0,1.80395862]
[1747150617077,0.09024663,103500.0,103490.0,1.80395862]
[1747150617211,0.08058499,103500.0,103490.0,1.80395862]
[1747150617662,0.04156207,103500.0,103490.0,1.80395862]
[1747150617877,0.04156217,103500.0,103490.0,1.80395862]
[1747150618085,0.05122353,103500.0,103490.0,1.80395862]
[1747150618482,0.07172353,103500.0,103490.0,1.80395862]
[1747150618696,0.06206217,103500.0,103490.0,1.80395862]
[1747150618916,0.01170099,103500.0,103490.0,1.80395862]
[1747150619333,0.02136207,103500.0,103490.0,2.14012802]
[1747150619548,0.03102325,103500.0,103490.0,2.14012802]
[1747150619776,0.00204,103500.0,103490.0,2.14012802]
[1747150620461,0.01170118,103500.0,103490.0,2.14012802]
[1747150620688,0.00204,103500.0,103490.0,2.14012802]
[1747150620915,0.01170099,103500.0,103490.0,2.14012802]
[1747150621160,0.00204,103500.0,103490.0,2.14012802]
[1747150621402,0.00204,103500.0,103490.0,2.14042802]
[1747150621619,0.00204,103500.0,103490.0,2.14012802]
[1747150623017,0.01170108,103500.0,103490.0,1.80395862]
[1747150623251,0.05320108,103500.0,103490.0,1.80395862]
[1747150623472,0.27542197,103500.0,103490.0,1.42668551]
[1747150623693,0.08218526,103500.0,103490.0,1.63820982]
[1747150623931,0.08218526,103500.0,103490.0,1.75914382]
[1747150624156,0.08218526,103500.0,103490.0,1.95134382]
[1747150624383,0.27542197,103500.0,103490.0,1.64251011]
[1747150624585,0.27542197,103500.0,103490.0,1.72343841]
[1747150624820,0.27542197,103500.0,103490.0,1.73310061]
[1747150625274,0.25610009,103500.0,103490.0,1.50225105]
[1747150625499,0.25610009,103500.0,103490.0,1.51191372]
[1747150625775,0.25610009,103500.0,103490.0,1.30899567]
[1747150626654,0.25610009,103500.0,103490.0,1.11679567]
[1747150626881,0.43053651,103500.0,103490.0,0.55546627]
[1747150627102,0.43053651,103500.0,103490.0,0.21546627]
[1747150628000,0.43053651,103500.0,103490.0,0.01722833]
[1747150628462,0.490912,103500.0,103490.0,0.00722833]
[1747150628701,0.42953651,103500.0,103490.0,0.01322833]
[1747150629179,0.42853651,103500.0,103490.0,0.01022833]
[1747150629399,0.42953651,103500.0,103490.0,0.01122833]
[1747150629841,0.42853651,103500.0,103490.0,0.01022833]
[1747150630075,0.42853651,103500.0,103490.0,0.00722833]
[1747150630315,0.42953651,103500.0,103490.0,0.01022833]
[1747150630559,0.42953651,103500.0,103490.0,0.00822833]
[1747150631035,0.62177651,103500.0,103490.0,0.00822833]
[1747150631257,0.54464949,103500.0,103490.0,0.00822833]
[1747150631694,0.35240949,103500.0,103490.0,0.00822833]
[1747150631914,0.54464949,103500.0,103490.0,0.00822833]
[1747150632126,0.35240949,103500.0,103490.0,0.00822833]
[1747150633421,0.35240949,103500.0,103490.0,0.34439773]
[1747150641957,0.35240949,103500.0,103490.0,0.00822833]
[1747150647077,0.35240949,103500.0,103490.0,0.0052097]
[1747150647280,0.54464949,103500.0,103490.0,0.0052097]
[1747150648650,0.35240949,103500.0,103490.0,0.0052097]
[1747150649505,0.35240949,103500.0,103490.0,0.00822929]
[1747150649706,0.35240949,103500.0,103490.0,0.20148467]
[1747150649927,0.35240949,103500.0,103490.0,0.34439869]
[1747150650134,0.35240949,103500.0,103490.0,0.00822929]
[1747150650599,0.35240949,103500.0,103490.0,0.20148467]
[1747150650825,0.35240949,103500.0,103490.0,0.53765407]
[1747150651050,0.34274785,103500.0,103490.0,0.54369275]
[1747150651484,0.34274785,103500.0,103490.0,0.53765407]
[1747150651697,0.34274785,103500.0,103490.0,0.87765407]
[1747150651898,0.24543845,103500.0,103490.0,0.87765407]
[1747150652330,0.24543845,103500.0,103490.0,0.88369259]
[1747150655240,0.24543845,103500.0,103490.0,0.88369241]
[1747150655942,0.00104,103500.0,103490.0,1.44104898]
[1747150656165,0.00104,103500.0,103490.0,2.65864738]
[1747150656616,4e-05,103500.0,103490.0,2.45350538]
[1747150657051,0.00204,103500.0,103490.0,2.46250538]
[1747150657503,4e-05,103500.0,103490.0,2.45350538]
[1747150657742,0.00204,103500.0,103490.0,2.46250538]
[1747150658483,0.00204,103500.0,103490.0,1.73885838]
[1747150658739,0.00204,103500.0,103490.0,4.31992538]
[1747150658982,0.00204,103500.0,103490.0,3.94740438]
[1747150660899,0.00204,103500.0,103490.0,3.27506558]
[1747150661123,0.00204,103500.0,103490.0,2.66546138]
[1747150661797,0.00204,103500.0,103490.0,2.65090038]
[1747150662676,0.00204,103500.0,103490.0,2.42067938]
[1747150663226,0.00204,103500.0,103490.0,2.39444514]
[1747150663421,0.00204,103500.0,103490.0,2.39448514]
[1747150668772,0.00204,103500.0,103490.0,2.39830424]
[1747150669176,0.00204,103500.0,103490.0,2.01390424]
[1747150669383,0.00204,103500.0,103490.0,2.19374424]
[1747150669603,0.00204,103500.0,103490.0,2.17442524]
[1747150670027,0.02184,103500.0,103490.0,2.17442524]
[1747150673113,0.02184,103500.0,103490.0,2.59174524]
[1747150673393,0.00204,103500.0,103490.0,2.59174524]
[1747150674601,0.00204,103500.0,103490.0,2.60626778]
[1747150674802,0.00204,103500.0,103490.0,2.14794578]
[1747150675032,0.00204,103500.0,103490.0,3.35722978]
[1747150675461,0.02154,103500.0,103490.0,3.17504278]
[1747150675665,0.02154,103500.0,103490.0,2.957215]
[1747150675943,0.02154,103500.0,103490.0,3.15047038]
[1747150679393,0.04264,103500.0,103490.0,3.15047038]
[1747150680180,0.00204,103500.0,103490.0,3.15047038]
[1747150680611,0.28982706,103540.0,103510.0,0.34]
[1747150680830,0.01931387,103550.0,103540.0,0.1931465]
[1747150681051,0.29922,103560.0,103550.0,0.1931434]
[1747150681282,0.08678251,103560.0,103550.0,0.55828317]
[1747150681493,0.10609394,103560.0,103550.0,0.54198755]
[1747150681750,0.3088753,103560.0,103550.0,0.53841376]
[1747150681981,0.30887586,103560.0,103550.0,0.73665376]
[1747150682190,0.00965558,103560.0,103550.0,0.76562391]
[1747150682414,0.02896683,103560.0,103550.0,0.7559674]
[1747150682629,0.04827901,103560.0,103550.0,0.74631061]
[1747150682845,0.04062362,103560.0,103550.0,0.76662429]
[1747150683261,0.03096739,103560.0,103550.0,0.76662429]
[1747150683464,0.04262362,103560.0,103550.0,0.76662429]
[1747150683685,0.05415567,103560.0,103550.0,1.1259375]
[1747150683944,0.07346701,103560.0,103550.0,1.12291995]
[1747150684195,0.06381106,103560.0,103550.0,1.12291995]
[1747150684399,0.07346665,103560.0,103550.0,1.12291995]
[1747150684600,0.06381088,103560.0,103550.0,1.12543252]
[1747150684814,0.07346646,103560.0,103550.0,1.12543215]
[1747150685053,0.05415539,103560.0,103550.0,1.12543215]
[1747150685263,0.06381097,103560.0,103550.0,1.12543215]
[1747150685495,0.06381097,103560.0,103550.0,1.12291958]
[1747150685704,0.05415539,103560.0,103550.0,1.15647983]
[1747150685913,0.0445,103560.0,103550.0,1.15647983]
[1747150686367,0.0445,103560.0,103550.0,1.49264923]
[1747150686368,0.004,103560.0,103550.0,1.49264923]
[1747150686592,0.004,103560.0,103550.0,1.15647983]
[1747150686829,0.0245,103560.0,103550.0,1.15647983]
[1747150687238,0.002,103560.0,103550.0,2.16431338]
[1747150687870,0.06070938,103570.0,103560.0,0.5620926]
[1747150688104,0.06070929,103570.0,103560.0,1.24408698]
[1747150688320,0.0414,103570.0,103560.0,1.25012212]
[1747150688534,0.05105446,103570.0,103560.0,1.25012212]
[1747150688743,0.0414,103570.0,103560.0,1.25012212]
[1747150688949,0.05105446,103570.0,103560.0,1.25012212]
[1747150689149,0.05205446,103570.0,103560.0,1.25012212]
[1747150689364,0.05205446,103570.0,103560.0,1.27706867]
[1747150690013,0.08101887,103570.0,103560.0,1.25012212]
[1747150690248,0.06170911,103570.0,103560.0,1.25012212]
[1747150690473,0.07136394,103570.0,103560.0,1.25012212]
[1747150690949,0.05209446,103570.0,103560.0,1.25012212]
[1747150691161,0.03965887,103570.0,103560.0,1.25016212]
[1747150691368,0.07835887,103570.0,103560.0,1.25016212]
[1747150691586,0.06870385,103570.0,103560.0,1.25016212]
[1747150691818,0.05904911,103570.0,103560.0,1.25016212]
[1747150692072,0.05804911,103570.0,103560.0,1.25016212]
[1747150692279,0.07735887,103570.0,103560.0,1.25016212]
[1747150692479,0.07735878,103570.0,103560.0,1.25116212]
[1747150692694,0.06770385,103570.0,103560.0,1.25116212]
[1747150693120,0.05804911,103570.0,103560.0,1.25316212]
[1747150693409,0.04839446,103570.0,103560.0,1.25316212]
[1747150694049,0.05804911,103570.0,103560.0,1.25316212]
[1747150694259,0.04839446,103570.0,103560.0,1.25316212]
[1747150694486,0.05804911,103570.0,103560.0,1.25316212]
[1747150694648,0.04839446,103570.0,103560.0,1.25316212]
[1747150694866,0.03874,103570.0,103560.0,1.25316212]
[1747150695072,0.03874,103570.0,103560.0,3.45397312]
[1747150695073,4e-05,103570.0,103560.0,3.45397312]
[1747150695273,4e-05,103570.0,103560.0,3.55128252]
[1747150696076,4e-05,103570.0,103560.0,3.57822907]
[1747150696271,0.05900762,103580.0,103570.0,0.5620709]
[1747150696484,0.04935372,103580.0,103570.0,1.7297093]
[1747150696911,0.0397,103580.0,103570.0,1.76269099]
[1747150697348,0.0397,103580.0,103570.0,1.79628926]
[1747150697557,0.0407,103580.0,103570.0,1.79628926]
[1747150697798,0.001,103580.0,103570.0,2.13245866]
[1747150698018,0.001,103580.0,103570.0,1.83368926]
[1747150698224,0.00965167,103600.0,103590.0,0.562028]
[1747150698444,0.04805167,103600.0,103590.0,1.5164668]
[1747150698669,0.0384,103600.0,103590.0,1.54940849]
[1747150698892,0.11572838,103620.0,103610.0,0.20268313]
[1747150699125,0.19373659,103620.0,103610.0,0.74758401]
[1747150699361,0.25313741,103620.0,103610.0,0.76463265]
[1747150699611,0.25313741,103620.0,103610.0,0.77428413]
[1747150699612,0.05988326,103620.0,103610.0,0.77428413]
[1747150699820,0.05023289,103620.0,103610.0,0.48857514]
[1747150700048,0.06953315,103620.0,103610.0,0.82474454]
[1747150700272,0.04058309,103620.0,103610.0,1.14323755]
[1747150700512,0.04258309,103620.0,103610.0,2.12725978]
[1747150700737,0.00248309,103620.0,103610.0,2.30807458]
[1747150700963,0.00248309,103620.0,103610.0,1.97190518]
[1747150701168,0.00052309,103620.0,103610.0,2.28141446]
[1747150701391,0.00052309,103620.0,103610.0,2.25990747]
[1747150701602,0.00052309,103620.0,103610.0,2.14275907]
[1747150701805,0.00152309,103620.0,103610.0,2.14275907]
[1747150702012,0.24258626,103620.0,103610.0,0.76713664]
[1747150702244,0.24258626,103620.0,103610.0,1.12260788]
[1747150702245,0.06857324,103620.0,103610.0,1.12260788]
[1747150702459,0.06957427,103620.0,103610.0,1.32321446]
[1747150702663,0.2625872,103620.0,103610.0,0.97935377]
[1747150702870,0.25193693,103620.0,103610.0,1.3058316]
[1747150703082,0.25193693,103620.0,103610.0,1.32613446]
[1747150703288,0.25193693,103620.0,103610.0,1.33578585]
[1747150703508,0.25193693,103620.0,103610.0,1.33578604]
[1747150703642,0.25193693,103620.0,103610.0,1.34543733]
[1747150703875,0.25193693,103620.0,103610.0,0.98031377]
[1747150704100,0.25193693,103620.0,103610.0,1.32613446]
[1747150704304,0.25193693,103620.0,103610.0,1.32613465]
[1747150704512,0.25193693,103620.0,103610.0,1.33578585]
[1747150704749,0.25193693,103620.0,103610.0,1.33578594]
[1747150704996,0.25193693,103620.0,103610.0,1.34543733]
[1747150705210,0.25193693,103620.0,103610.0,1.12345161]
[1747150705410,0.25193693,103620.0,103610.0,1.12345152]
[1747150705823,0.25193693,103620.0,103610.0,1.32613447]
[1747150706666,0.25193693,103620.0,103610.0,1.33578558]
[1747150706881,0.07822361,103620.0,103610.0,1.3454365]
[1747150707096,0.07822445,103620.0,103610.0,1.33578558]
[1747150707333,0.27123738,103620.0,103610.0,1.33578576]
[1747150707554,0.27123738,103620.0,103610.0,1.35508807]
[1747150708272,0.24228666,103620.0,103610.0,1.11380004]
[1747150708444,0.24228666,103620.0,103610.0,0.77763064]
[1747150708667,0.24228666,103620.0,103610.0,1.32613456]
[1747150708898,0.01962309,103620.0,103610.0,1.35508797]
[1747150709134,0.05912373,103620.0,103610.0,1.35508797]
[1747150709580,0.26178674,103620.0,103610.0,1.33602585]
[1747150709806,0.26178674,103620.0,103610.0,1.35532816]
[1747150711334,0.26178674,103620.0,103610.0,1.3553276]
[1747150711562,0.26178674,103620.0,103610.0,1.34567659]
[1747150711759,0.26178674,103620.0,103610.0,1.33602548]
[1747150712193,0.26178674,103620.0,103610.0,1.34567659]
[1747150713090,0.25213666,103620.0,103610.0,1.33602548]
[1747150715277,0.25213666,103620.0,103610.0,0.68524004]
[1747150715278,0.24248648,103620.0,103610.0,0.68524004]
[1747150715482,0.23283602,103620.0,103610.0,1.0921516]
[1747150715679,0.23283602,103620.0,103610.0,1.10180317]
[1747150716087,0.23283602,103620.0,103610.0,1.11145465]
[1747150716296,0.23283602,103620.0,103610.0,0.89912004]
[1747150717891,0.23283602,103620.0,103610.0,0.00907064]
[1747150718115,0.44985553,103620.0,103610.0,0.00907064]
[1747150718334,0.40727244,103620.0,103610.0,0.00907064]
[1747150718546,0.33014542,103620.0,103610.0,0.00304]
[1747150718981,0.40727244,103620.0,103610.0,0.00304]
[1747150719201,0.40727244,103620.0,103610.0,0.00104]
[1747150719658,0.40827244,103620.0,103610.0,0.00104]
[1747150720115,0.40827244,103620.0,103610.0,4e-05]
[1747150720733,0.40927244,103620.0,103610.0,4e-05]
[1747150720929,0.33214542,103620.0,103610.0,4e-05]
[1747150722320,0.25411455,103600.0,103590.0,0.68582284]
[1747150722532,0.25415455,103600.0,103590.0,0.6918552]
[1747150722738,0.25415455,103600.0,103590.0,0.68220176]
[1747150723438,0.25415455,103600.0,103590.0,0.68520176]
[1747150723614,0.25415455,103600.0,103590.0,0.87827058]
[1747150724442,0.25415455,103600.0,103590.0,0.88127058]
[1747150724903,0.25415455,103600.0,103590.0,0.89092403]
[1747150725024,0.24450251,103600.0,103590.0,0.89092403]
[1747150725655,0.24450251,103600.0,103590.0,0.90057728]